bitfinex-derivatives/quotes_BTCF0:USTF0_20241104
["timestamp","ask_amount","ask_price","bid_price","bid_amount"]
[1730681600550,0.072933,68580.0,68579.0,1.55829208]
[1730681600751,0.163933,68580.0,68579.0,1.5]
[1730681601158,0.072934,68579.0,68578.0,0.06047924]
[1730681601458,0.091,68580.0,68579.0,0.072934]
[1730681601652,0.0464,68580.0,68579.0,0.072934]
[1730681601858,0.36188,68581.0,68579.0,0.072934]
[1730681602054,0.072934,68579.0,68578.0,0.00218716]
[1730681602456,0.073934,68579.0,68578.0,0.00218716]
[1730681603857,0.073934,68579.0,68578.0,0.00318716]
[1730681604254,0.072934,68579.0,68578.0,0.00318716]
[1730681604951,0.072934,68579.0,68569.0,0.05830072]
[1730681604952,0.072943,68570.0,68569.0,0.05830072]
[1730681605151,0.072947,68566.0,68565.0,0.05830072]
[1730681605355,0.072953,68561.0,68560.0,1.5]
[1730681605560,0.072953,68561.0,68559.0,0.07313069]
[1730681605760,0.072955,68559.0,68558.0,0.11584]
[1730681605957,0.18186495,68559.0,68556.0,0.433758]
[1730681606152,0.072957,68557.0,68556.0,0.3608]
[1730681606348,0.072957,68557.0,68554.0,0.00218796]
[1730681606349,0.06412585,68557.0,68554.0,0.07514796]
[1730681606550,0.06412585,68556.0,68555.0,0.072959]
[1730681606758,0.03572918,68556.0,68554.0,0.00218796]
[1730681606958,0.14529589,68561.0,68558.0,0.014]
[1730681607159,0.10942877,68560.0,68559.0,0.072955]
[1730681608355,0.10942877,68560.0,68558.0,0.014]
[1730681608556,0.10942877,68559.0,68558.0,0.014]
[1730681608855,0.02891012,68559.0,68556.0,0.072958]
[1730681609052,0.02891012,68558.0,68555.0,0.014]
[1730681609263,0.02891012,68557.0,68556.0,0.072958]
[1730681609856,0.03573052,68557.0,68554.0,0.00218796]
[1730681610064,0.3608,68562.0,68555.0,0.072959]
[1730681610065,0.06464064,68556.0,68555.0,0.072959]
[1730681610369,0.02925893,68556.0,68555.0,0.21345557]
[1730681610960,0.02607177,68556.0,68555.0,0.65105557]
[1730681611161,0.3608,68562.0,68555.0,1.02585557]
[1730681611467,0.3608,68562.0,68561.0,0.14049657]
[1730681611667,0.3608,68562.0,68561.0,0.25633657]
[1730681612262,0.3608,68562.0,68561.0,0.32928957]
[1730681613058,0.3608,68562.0,68561.0,0.626353]
[1730681613456,0.30970039,68562.0,68561.0,0.72685362]
[1730681613664,0.30970039,68562.0,68561.0,0.74085362]
[1730681614062,0.30970039,68562.0,68561.0,0.75485362]
[1730681614670,0.30970039,68562.0,68561.0,2.25485362]
[1730681614873,0.30970039,68562.0,68561.0,2.25450429]
[1730681616063,0.30970039,68562.0,68561.0,2.28374702]
[1730681617067,0.30970039,68562.0,68561.0,2.28174702]
[1730681617576,0.30970039,68562.0,68561.0,2.26774702]
[1730681617781,0.30970039,68562.0,68561.0,2.28174702]
[1730681618870,0.30970039,68562.0,68561.0,2.28274702]
[1730681619364,0.0859,68583.0,68561.0,2.28274702]
[1730681619365,0.3608,68580.0,68561.0,2.69000606]
[1730681619572,0.3608,68580.0,68579.0,0.072934]
[1730681619882,0.3608,68580.0,68579.0,0.24538632]
[1730681620184,0.0418,68583.0,68582.0,0.07293]
[1730681620487,0.072921,68591.0,68590.0,0.072922]
[1730681620687,0.1292,68596.0,68590.0,1.5]
[1730681620903,0.072918,68594.0,68593.0,0.072918]
[1730681621180,0.10371655,68594.0,68593.0,0.072918]
[1730681622587,0.10571655,68594.0,68593.0,0.072918]
[1730681622975,0.10871655,68594.0,68593.0,0.072918]
[1730681623879,0.03565275,68594.0,68593.0,0.072918]
[1730681625279,0.03565275,68594.0,68593.0,0.21341457]
[1730681627280,0.005,68594.0,68593.0,0.21341457]
[1730681628279,0.005,68594.0,68593.0,1.01157457]
[1730681629392,0.005,68594.0,68593.0,0.32741457]
[1730681630389,0.005,68594.0,68593.0,0.35627212]
[1730681632183,0.005,68594.0,68593.0,0.072918]
[1730681632785,0.005,68594.0,68593.0,0.186918]
[1730681636284,0.005,68594.0,68593.0,0.32741457]
[1730681637884,0.005,68594.0,68593.0,0.21341457]
[1730681638087,0.005,68594.0,68593.0,0.32737457]
[1730681640086,0.0432,68604.0,68603.0,0.072908]
[1730681640293,0.0432,68604.0,68603.0,0.21340457]
[1730681641493,0.0462,68604.0,68603.0,0.21440457]
[1730681641692,0.0482,68604.0,68603.0,0.21440457]
[1730681641996,0.005,68604.0,68603.0,0.21440457]
[1730681642194,0.02850636,68608.0,68607.0,0.072904]
[1730681642490,0.048,68611.0,68610.0,0.072901]
[1730681643595,0.07638801,68611.0,68610.0,0.072901]
[1730681644190,0.10824027,68611.0,68610.0,0.072901]
[1730681645187,0.10824027,68611.0,68610.0,0.21339757]
[1730681645387,0.06024027,68611.0,68610.0,0.21339757]
[1730681645587,0.03192624,68611.0,68610.0,1.71339757]
[1730681645796,0.0472,68619.0,68618.0,0.072892]
[1730681645991,0.07937906,68619.0,68618.0,0.072892]
[1730681647288,0.08037906,68619.0,68618.0,0.073892]
[1730681648499,0.08037906,68619.0,68601.0,0.14049657]
[1730681648500,0.0482,68619.0,68601.0,0.14049657]
[1730681648693,0.0482,68619.0,68610.0,0.072901]
[1730681648694,0.3608,68611.0,68610.0,0.072901]
[1730681650499,0.3628,68611.0,68610.0,0.072901]
[1730681651693,0.39284589,68611.0,68610.0,0.072901]
[1730681652389,0.46574589,68611.0,68610.0,0.072901]
[1730681652590,0.072902,68609.0,68608.0,0.072902]
[1730681653899,0.073902,68609.0,68608.0,0.072902]
[1730681654398,0.074902,68609.0,68608.0,0.072902]
[1730681659509,0.002,68609.0,68608.0,0.072902]
[1730681665907,0.002,68609.0,68608.0,0.14565039]
[1730681666205,0.002,68609.0,68608.0,0.24402503]
[1730681666421,0.002,68609.0,68608.0,0.17127664]
[1730681666612,0.002,68609.0,68608.0,0.24408067]
[1730681667311,0.002,68609.0,68608.0,0.17127664]
[1730681670522,0.002,68609.0,68608.0,0.09837464]
[1730681670725,0.002,68609.0,68606.0,0.07286599]
[1730681671019,0.002,68609.0,68599.0,1.50084]
[1730681671020,0.072906,68605.0,68604.0,0.07287095]
[1730681671208,0.3608,68605.0,68603.0,0.07286056]
[1730681671408,0.169807,68604.0,68603.0,0.07286056]
[1730681671609,0.0969,68604.0,68600.0,0.07286056]
[1730681671814,0.072912,68599.0,68598.0,0.07286056]
[1730681672022,0.16484448,68599.0,68598.0,0.1717623]
[1730681672322,0.16484448,68599.0,68582.0,0.09193248]
[1730681672323,0.072916,68596.0,68595.0,0.07284286]
[1730681672529,0.433716,68596.0,68595.0,0.05827827]
[1730681672818,0.072918,68594.0,68593.0,0.05827827]
[1730681673019,0.072918,68594.0,68585.0,0.07284286]
[1730681673020,0.09193248,68593.0,68585.0,0.07284286]
[1730681673217,0.072929,68583.0,68580.0,0.07284286]
[1730681673419,0.072933,68580.0,68578.0,0.07284286]
[1730681673725,0.433735,68579.0,68577.0,0.14577886]
[1730681674014,0.11208839,68578.0,68577.0,0.072936]
[1730681674205,0.06731313,68578.0,68574.0,0.0021873]
[1730681674406,0.3608,68579.0,68574.0,0.0021873]
[1730681674407,0.21309449,68575.0,68574.0,0.0021873]
[1730681674607,0.32518454,68575.0,68574.0,0.0021873]
[1730681675516,0.28040762,68575.0,68574.0,0.0021873]
[1730681676121,0.28040762,68575.0,68574.0,0.0161873]
[1730681676821,0.06731313,68575.0,68574.0,0.014]
[1730681677120,0.06731313,68575.0,68574.0,0.086939]
[1730681677320,0.03114839,68575.0,68574.0,0.093939]
[1730681678208,0.03038839,68575.0,68574.0,0.642059]
[1730681678412,0.3608,68585.0,68583.0,0.072929]
[1730681678606,0.03639265,68584.0,68583.0,0.072929]
[1730681678809,0.3608,68585.0,68578.0,0.14015649]
[1730681679022,0.3608,68585.0,68584.0,0.072928]
[1730681679219,0.39741055,68585.0,68584.0,0.072928]
[1730681679618,0.3628,68585.0,68584.0,0.072928]
[1730681679922,0.3648,68585.0,68584.0,0.072928]
[1730681680306,0.3628,68585.0,68584.0,0.072928]
[1730681680507,0.3638,68585.0,68584.0,0.072928]
[1730681681515,0.3638,68585.0,68584.0,1.572928]
[1730681681716,0.3618,68585.0,68584.0,1.572928]
[1730681681918,0.3608,68585.0,68584.0,1.572928]
[1730681682724,0.3608,68585.0,68584.0,1.577928]
[1730681682915,0.3608,68585.0,68584.0,1.505]
[1730681683111,0.433727,68585.0,68584.0,1.504]
[1730681683315,0.433727,68585.0,68584.0,1.508]
[1730681683910,0.433727,68585.0,68584.0,0.008]
[1730681684923,0.434727,68585.0,68584.0,0.004]
[1730681685629,0.433727,68585.0,68584.0,0.004]
[1730681685823,0.433727,68585.0,68575.0,0.11645721]
[1730681685824,0.072935,68578.0,68575.0,0.072938]
[1730681686024,0.072935,68578.0,68569.0,1.5]
[1730681686025,0.072939,68574.0,68570.0,0.072943]
[1730681688631,0.073939,68574.0,68570.0,0.073943]
[1730681688932,0.002,68574.0,68570.0,0.072943]
[1730681689132,0.433742,68571.0,68570.0,0.072943]
[1730681691330,0.433742,68571.0,68570.0,0.078943]
[1730681691927,0.435742,68571.0,68570.0,0.075943]
[1730681692233,0.3648,68571.0,68570.0,0.072943]
[1730681692428,0.002,68571.0,68570.0,0.072943]
[1730681692634,0.004,68571.0,68570.0,0.072943]
[1730681692824,0.002,68571.0,68570.0,0.072943]
[1730681693036,0.004,68571.0,68570.0,0.510463]
[1730681693232,0.3608,68589.0,68588.0,0.072924]
[1730681693531,0.3608,68589.0,68588.0,0.35323698]
[1730681693719,0.3608,68597.0,68592.0,0.072919]
[1730681693926,0.3608,68597.0,68594.0,0.14015649]
[1730681694326,0.3608,68597.0,68594.0,0.21307349]
[1730681695230,0.3608,68597.0,68595.0,0.072917]
[1730681696022,0.16439642,68596.0,68594.0,0.00707234]
[1730681696230,0.16439642,68595.0,68594.0,0.00707234]
[1730681696625,0.11208809,68595.0,68594.0,0.07999034]
[1730681697530,0.11208809,68595.0,68594.0,0.072918]
[1730681697731,0.11208809,68595.0,68589.0,0.14015649]
[1730681697732,0.072918,68594.0,68589.0,0.14015649]
[1730681697932,0.3608,68591.0,68589.0,0.14015649]
[1730681698246,0.16439642,68590.0,68589.0,0.21307949]
[1730681698531,0.11208809,68590.0,68589.0,0.21307949]
[1730681698942,0.11208809,68590.0,68589.0,0.21407949]
[1730681699336,0.11208809,68590.0,68589.0,0.21307949]
[1730681699634,0.11208809,68590.0,68589.0,0.21807949]
[1730681699826,0.11208809,68590.0,68589.0,0.21907949]
[1730681700027,0.10983294,68590.0,68589.0,0.21407949]
[1730681701334,0.05230833,68596.0,68589.0,0.21407949]
[1730681701335,0.05230969,68596.0,68595.0,0.072917]
[1730681701529,0.3608,68597.0,68596.0,0.072916]
[1730681701837,0.05230572,68597.0,68596.0,1.572916]
[1730681702038,0.05230572,68607.0,68606.0,0.072905]
[1730681702234,0.0498,68608.0,68607.0,0.21306049]
[1730681703334,0.05230026,68611.0,68607.0,0.14115649]
[1730681703535,0.05230026,68611.0,68610.0,0.072901]
[1730681703536,0.08159723,68611.0,68610.0,0.072901]
[1730681703947,0.08159723,68611.0,68607.0,0.13416973]
[1730681704138,0.02929697,68611.0,68607.0,0.13416973]
[1730681704345,0.3608,68612.0,68607.0,0.13416973]
[1730681704545,0.3608,68612.0,68611.0,0.0729]
[1730681705432,0.38987178,68612.0,68611.0,0.0729]
[1730681705843,0.38987178,68612.0,68611.0,0.0739]
[1730681706241,0.38987178,68612.0,68611.0,0.0749]
[1730681708441,0.38987178,68612.0,68611.0,0.0729]
[1730681711144,0.52262425,68612.0,68608.0,0.00337147]
[1730681711455,0.16091664,68611.0,68610.0,0.072901]
[1730681712144,0.16091664,68611.0,68610.0,0.04467508]
[1730681712342,0.26780331,68611.0,68610.0,0.04467508]
[1730681712543,0.16091664,68611.0,68610.0,0.40547508]
[1730681712744,0.18734146,68611.0,68610.0,0.40547508]
[1730681712943,0.10862249,68611.0,68610.0,1.90547508]
[1730681713148,0.10862249,68611.0,68610.0,2.34271508]
[1730681713660,0.10862249,68611.0,68610.0,2.37119627]
[1730681714346,0.25330291,68611.0,68610.0,2.37119627]
[1730681715238,0.10862249,68611.0,68610.0,2.37119627]
[1730681716037,0.15917729,68617.0,68611.0,0.43724]
[1730681716244,0.15917729,68620.0,68619.0,0.072891]
[1730681716450,0.15917729,68620.0,68619.0,0.183771]
[1730681716639,0.15917729,68625.0,68624.0,0.072886]
[1730681716842,0.15917729,68627.0,68626.0,0.072884]
[1730681717242,0.05228243,68630.0,68624.0,0.14015649]
[1730681717444,0.15911972,68630.0,68628.0,0.072882]
[1730681717644,0.0984821,68629.0,68628.0,0.072882]
[1730681717837,0.0462,68629.0,68628.0,0.072882]
[1730681718454,0.072872,68638.0,68628.0,0.072882]
[1730681718455,0.15913185,68644.0,68629.0,0.43712]
[1730681718748,0.3608,68655.0,68654.0,0.072854]
[1730681718942,0.3608,68655.0,68654.0,1.82389049]
[1730681719256,0.32434675,68655.0,68654.0,2.47820357]
[1730681719653,0.3608,68667.0,68654.0,2.47820357]
[1730681719654,0.3608,68667.0,68666.0,0.072841]
[1730681719839,0.3608,68667.0,68666.0,0.32387749]
[1730681720348,0.0481,68669.0,68668.0,0.072839]
[1730681721841,0.0481,68669.0,68668.0,0.074839]
[1730681722250,0.3608,68675.0,68674.0,0.072833]
[1730681723755,0.072834,68673.0,68668.0,0.002]
[1730681723954,0.072834,68673.0,68668.0,0.001]
[1730681724141,0.3608,68675.0,68674.0,0.072833]
[1730681725750,0.3608,68675.0,68674.0,0.073833]
[1730681726049,0.3608,68691.0,68682.0,0.072824]
[1730681726254,0.3608,68691.0,68682.0,0.32378049]
[1730681726445,0.0956,68694.0,68682.0,0.32378049]
[1730681726646,0.0956,68694.0,68693.0,0.072813]
[1730681727255,0.0956,68694.0,68693.0,1.572813]
[1730681727856,0.0956,68694.0,68693.0,1.573813]
[1730681728756,0.0956,68694.0,68693.0,1.502]
[1730681729055,0.072817,68689.0,68682.0,0.1108]
[1730681729250,0.3608,68688.0,68685.0,0.072821]
[1730681730553,0.3618,68688.0,68685.0,0.073821]
[1730681731255,0.3628,68688.0,68685.0,0.074821]
[1730681733652,0.02813382,68687.0,68680.0,1.6116]
[1730681733851,0.02813382,68686.0,68685.0,0.072821]
[1730681734050,0.02813382,68686.0,68685.0,0.074821]
[1730681734460,0.02813382,68686.0,68685.0,0.435621]
[1730681734657,0.002,68688.0,68685.0,0.435621]
[1730681734856,0.001,68688.0,68687.0,0.21297549]
[1730681735165,0.0956,68694.0,68693.0,0.072813]
[1730681735364,0.15939507,68694.0,68693.0,0.072813]
[1730681735655,0.1237316,68694.0,68693.0,0.072813]
[1730681736661,0.1237316,68694.0,68693.0,1.572813]
[1730681737253,0.1257316,68694.0,68693.0,1.572813]
[1730681737553,0.1257316,68694.0,68693.0,1.575813]
[1730681737962,0.1237316,68694.0,68693.0,1.578813]
[1730681738359,0.0748316,68694.0,68693.0,1.578813]
[1730681738753,0.0748316,68694.0,68693.0,1.506]
[1730681738957,0.0748316,68694.0,68693.0,0.006]
[1730681739158,0.0748316,68694.0,68693.0,0.078813]
[1730681739457,0.0467,68694.0,68693.0,1.578813]
[1730681740160,0.0467,68694.0,68693.0,1.575813]
[1730681740457,0.07482837,68694.0,68693.0,1.577813]
[1730681740958,0.0502,68703.0,68699.0,0.072806]
[1730681741265,0.12812753,68700.0,68699.0,0.32372249]
[1730681741849,0.1,68700.0,68699.0,0.32372249]
[1730681742051,0.102,68700.0,68699.0,0.32372249]
[1730681743853,0.104,68700.0,68699.0,0.21296249]
[1730681744063,0.104,68700.0,68699.0,0.32368249]
[1730681745662,0.104,68700.0,68699.0,1.33871145]
[1730681746055,0.104,68700.0,68699.0,2.83871145]
[1730681746763,0.02869936,68709.0,68708.0,0.072797]
[1730681747065,0.0507,68710.0,68709.0,0.072796]
[1730681747451,0.0507,68710.0,68709.0,1.572796]
[1730681748059,0.11176,68737.0,68709.0,1.572796]
[1730681748060,0.072789,68716.0,68709.0,2.23664]
[1730681748255,0.0484,68733.0,68715.0,0.14015649]
[1730681748453,0.0484,68733.0,68732.0,0.072771]
[1730681748973,0.28046603,68733.0,68732.0,0.21292749]
[1730681749265,0.15683505,68733.0,68732.0,1.71292749]
[1730681749655,0.22960505,68733.0,68732.0,1.61176]
[1730681749853,0.32971547,68733.0,68732.0,1.61176]
[1730681750058,0.22960505,68733.0,68732.0,1.5]
[1730681750255,0.26595581,68733.0,68732.0,1.572771]
[1730681750465,0.22960505,68733.0,68732.0,1.572771]
[1730681750667,0.15683505,68733.0,68732.0,1.573771]
[1730681751264,0.19309923,68733.0,68732.0,1.574771]
[1730681751455,0.11215875,68733.0,68732.0,1.574771]
[1730681751656,0.06175875,68733.0,68732.0,2.62396749]
[1730681752061,0.06175875,68733.0,68732.0,2.483811]
[1730681752463,0.02811557,68733.0,68732.0,2.62396749]
[1730681752759,0.02811557,68733.0,68732.0,2.483811]
[1730681753166,0.02811557,68733.0,68732.0,2.482811]
[1730681753372,0.02811557,68733.0,68732.0,2.483811]
[1730681753558,0.02811557,68733.0,68732.0,2.51135091]
[1730681753759,0.02811557,68733.0,68732.0,2.51235091]
[1730681755166,0.02811557,68733.0,68732.0,1.935571]
[1730681755372,0.02811557,68733.0,68732.0,2.047331]
[1730681756071,0.02811557,68733.0,68732.0,2.047291]
[1730681756768,0.072762,68741.0,68740.0,0.072763]
[1730681758268,0.0403,68743.0,68741.0,0.072761]
[1730681759471,0.0403,68743.0,68740.0,0.001]
[1730681759472,0.11306,68743.0,68740.0,0.002]
[1730681759779,0.072761,68742.0,68732.0,1.57353]
[1730681760077,0.3608,68736.0,68734.0,0.072769]
[1730681760372,0.3608,68736.0,68735.0,0.072768]
[1730681760561,0.0403,68743.0,68742.0,0.072761]
[1730681760766,0.0403,68743.0,68741.0,0.002]
[1730681760767,0.072761,68742.0,68741.0,0.002]
[1730681761067,0.072765,68738.0,68737.0,0.072765]
[1730681761262,0.072765,68738.0,68732.0,1.64099649]
[1730681761462,0.072767,68736.0,68735.0,0.072768]
[1730681761668,0.3608,68737.0,68732.0,1.5008]
[1730681761870,0.3608,68737.0,68732.0,1.5]
[1730681761871,0.07277,68734.0,68732.0,1.5]
[1730681762183,0.07277,68734.0,68733.0,0.07277]
[1730681762761,0.07277,68733.0,68732.0,0.00088]
[1730681762974,0.072776,68728.0,68725.0,0.072779]
[1730681763274,0.072783,68722.0,68720.0,0.072783]
[1730681763474,0.3608,68728.0,68720.0,0.072783]
[1730681763676,0.02811964,68727.0,68720.0,0.072783]
[1730681763995,0.072781,68723.0,68712.0,0.23975579]
[1730681764279,0.072786,68718.0,68717.0,0.072786]
[1730681764479,0.18123633,68718.0,68717.0,0.072786]
[1730681764778,0.18911038,68718.0,68717.0,1.71294249]
[1730681764971,0.10845033,68718.0,68717.0,1.71294349]
[1730681765172,0.02811986,68719.0,68717.0,1.64015649]
[1730681765372,0.10845158,68718.0,68717.0,1.71294349]
[1730681765678,0.1725477,68718.0,68717.0,1.71294349]
[1730681766074,0.17265467,68718.0,68717.0,1.71294349]
[1730681766273,0.17265467,68718.0,68717.0,1.572787]
[1730681766473,0.10090586,68718.0,68717.0,1.5]
[1730681766670,0.61779758,68718.0,68717.0,1.5]
[1730681766883,1.03081224,68718.0,68717.0,1.5]
[1730681769591,0.59425224,68718.0,68717.0,1.5]
[1730681769781,0.59425961,68718.0,68717.0,1.5]
[1730681769981,0.16067361,68718.0,68717.0,1.572787]
[1730681770182,0.10845158,68718.0,68717.0,1.572787]
[1730681770378,0.06376847,68718.0,68717.0,1.572787]
[1730681770578,0.31981954,68718.0,68717.0,1.572787]
[1730681770784,0.26760673,68718.0,68717.0,1.572787]
[1730681771186,0.31981969,68718.0,68717.0,1.572787]
[1730681771384,0.16066379,68718.0,68717.0,1.572787]
[1730681771592,0.16071734,68718.0,68717.0,1.572787]
[1730681771794,0.15929507,68718.0,68717.0,1.67735087]
[1730681771991,0.15924152,68718.0,68717.0,1.67735087]
[1730681773784,0.15924152,68718.0,68717.0,1.76407702]
[1730681774190,0.15924152,68718.0,68717.0,1.67735087]
[1730681775484,0.15924152,68718.0,68714.0,0.07230802]
[1730681775485,0.072789,68715.0,68714.0,0.07230802]
[1730681775692,0.072789,68715.0,68706.0,0.08672615]
[1730681775693,0.072791,68713.0,68706.0,0.08672615]
[1730681775899,0.3608,68707.0,68702.0,1.5]
[1730681776082,0.3608,68707.0,68701.0,0.00218306]
[1730681776083,0.072803,68702.0,68701.0,0.00218306]
[1730681777699,0.072803,68702.0,68701.0,0.06004904]
[1730681778489,0.14015649,68705.0,68698.0,0.05786598]
[1730681778692,0.57376249,68699.0,68696.0,0.05786598]
[1730681778899,0.57376249,68699.0,68694.0,0.04338996]
[1730681778900,0.0411,68698.0,68694.0,0.04338996]
[1730681779198,0.0411,68698.0,68688.0,0.04338996]
[1730681779394,0.0411,68698.0,68689.0,1.5]
[1730681779395,0.3608,68692.0,68689.0,1.5]
[1730681779599,0.072816,68690.0,68689.0,1.5]
[1730681780300,0.3608,68692.0,68680.0,0.04338996]
[1730681780499,0.07282,68687.0,68682.0,0.072824]
[1730681780690,0.07282,68687.0,68682.0,1.572824]
[1730681781091,0.07282,68687.0,68682.0,1.5]
[1730681781293,0.07282,68687.0,68685.0,0.072821]
[1730681786199,0.07282,68687.0,68682.0,1.50076]
[1730681786399,0.07282,68687.0,68682.0,1.572824]
[1730681787504,0.072821,68686.0,68682.0,1.572824]
[1730681788004,0.072821,68685.0,68682.0,1.572824]
[1730681788202,0.072822,68684.0,68682.0,1.572824]
[1730681788794,0.3608,68686.0,68685.0,0.072821]
[1730681789801,0.3608,68692.0,68685.0,0.21297749]
[1730681790098,0.3608,68692.0,68691.0,0.21297149]
[1730681790299,0.3608,68692.0,68691.0,0.072815]
[1730681794409,0.3608,68692.0,68686.0,0.072819]
[1730681794612,0.0318,68691.0,68686.0,0.072819]
[1730681794902,0.072819,68688.0,68683.0,0.072823]
[1730681795109,0.072819,68687.0,68683.0,0.072823]
[1730681795308,0.072822,68684.0,68683.0,0.072823]
[1730681795505,0.072823,68683.0,68682.0,1.50084]
[1730681795702,0.105223,68683.0,68682.0,1.5]
[1730681796103,0.105223,68683.0,68678.0,0.002184]
[1730681796104,0.072825,68681.0,68678.0,0.002184]
[1730681796702,0.072825,68681.0,68679.0,1.572827]
[1730681797519,0.072825,68681.0,68669.0,0.072838]
[1730681797520,0.3608,68681.0,68669.0,0.072838]
[1730681797814,0.072838,68669.0,68668.0,0.0433751]
[1730681798305,0.072838,68669.0,68660.0,1.604747]
[1730681798306,0.0339,68669.0,68660.0,1.604747]
[1730681798505,0.0339,68669.0,68660.0,0.072847]
[1730681798506,0.3608,68664.0,68660.0,0.072847]
[1730681798704,0.072847,68661.0,68660.0,0.072847]
[1730681798908,0.07285,68658.0,68657.0,0.00015259]
[1730681799113,0.072854,68654.0,68653.0,1.5]
[1730681801608,0.072854,68654.0,68653.0,1.572855]
[1730681802204,0.07285,68659.0,68653.0,1.5]
[1730681802404,0.50223649,68663.0,68653.0,1.5]
[1730681802405,0.36208,68663.0,68661.0,0.072846]
[1730681802607,0.3608,68663.0,68661.0,0.072846]
[1730681803008,0.4762,68670.0,68653.0,1.5]
[1730681803009,0.36216,68670.0,68658.0,0.14015649]
[1730681803213,0.36216,68670.0,68656.0,0.3608]
[1730681803214,0.3608,68670.0,68669.0,0.072838]
[1730681804903,0.3608,68680.0,68669.0,0.64987449]
[1730681805110,0.3608,68680.0,68679.0,0.072827]
[1730681805609,0.3608,68680.0,68679.0,1.572827]
[1730681807208,0.47007755,68688.0,68687.0,0.072819]
[1730681808316,0.433618,68688.0,68687.0,0.072819]
[1730681809612,0.07282,68686.0,68682.0,0.072823]
[1730681809815,0.14015649,68685.0,68679.0,1.50076]
[1730681810027,0.433624,68682.0,68679.0,1.5]
[1730681810313,0.433624,68682.0,68679.0,1.572827]
[1730681810619,0.433624,68682.0,68679.0,1.5]
[1730681810817,0.3608,68682.0,68681.0,0.072825]
[1730681811917,0.433624,68682.0,68681.0,0.072825]
[1730681812905,0.3608,68682.0,68681.0,0.072825]
[1730681813109,0.072821,68686.0,68682.0,0.072823]
[1730681813304,0.072821,68685.0,68682.0,0.072823]
[1730681813809,0.072821,68685.0,68684.0,0.072822]
[1730681814821,0.072821,68685.0,68680.0,0.072826]
[1730681815116,0.072824,68683.0,68680.0,0.072826]
[1730681815323,0.072826,68680.0,68679.0,0.00088]
[1730681815507,0.072828,68679.0,68677.0,0.072829]
[1730681815709,0.3608,68682.0,68678.0,0.072828]
[1730681817122,0.3608,68682.0,68674.0,1.50076]
[1730681817423,0.06380651,68681.0,68679.0,0.14015649]
[1730681817724,0.06380491,68680.0,68679.0,0.072827]
[1730681819920,0.02813663,68680.0,68679.0,0.072827]
[1730681823020,0.10851131,68687.0,68679.0,0.21298349]
[1730681823220,0.06380163,68686.0,68685.0,0.433621]
[1730681823518,0.02813448,68686.0,68685.0,0.433621]
[1730681824315,0.072811,68695.0,68694.0,0.072812]
[1730681824522,0.3965993,68696.0,68695.0,0.07281]
[1730681824916,0.4694083,68696.0,68695.0,0.07281]
[1730681826116,0.3965993,68696.0,68695.0,0.07281]
[1730681826320,0.4694083,68696.0,68695.0,0.07281]
[1730681826911,0.3965993,68696.0,68695.0,0.07281]
[1730681829923,0.4694083,68696.0,68695.0,0.07281]
[1730681830118,0.3965993,68696.0,68695.0,0.07281]
[1730681832322,0.50509545,68696.0,68695.0,0.07281]
[1730681832634,0.64985598,68696.0,68695.0,0.07281]
[1730681833026,0.50509545,68696.0,68695.0,0.07281]
[1730681833917,0.072811,68695.0,68686.0,0.11676]
[1730681834222,0.07282,68687.0,68685.0,0.072821]
[1730681834422,0.02813215,68686.0,68685.0,0.072821]
[1730681834622,0.10849899,68686.0,68685.0,0.072821]
[1730681835326,0.02813215,68686.0,68685.0,0.072821]
[1730681836023,0.17351987,68686.0,68685.0,0.072821]
[1730681836225,0.10849899,68686.0,68685.0,0.072821]
[1730681836733,0.17351695,68686.0,68685.0,0.433621]
[1730681837333,0.17351695,68686.0,68685.0,0.072821]
[1730681837639,0.33736009,68686.0,68682.0,0.072824]
[1730681837827,0.3608,68683.0,68682.0,0.072824]
[1730681838028,0.52153525,68683.0,68674.0,0.0318]
[1730681838229,0.15994318,68678.0,68677.0,0.07283]
[1730681838427,0.18807533,68678.0,68677.0,0.07283]
[1730681838737,0.16074187,68678.0,68677.0,0.07283]
[1730681839233,0.10849899,68678.0,68677.0,0.07283]
[1730681839426,0.433623,68683.0,68677.0,0.10591947]
[1730681839630,0.433623,68683.0,68680.0,0.07264377]
[1730681839845,0.433623,68683.0,68681.0,0.072825]
[1730681841235,0.072824,68682.0,68681.0,0.072825]
[1730681842735,0.3608,68683.0,68680.0,0.07264377]
[1730681842736,0.072825,68681.0,68680.0,0.07264377]
[1730681843423,0.072825,68681.0,68673.0,0.00218416]
[1730681843424,0.072826,68680.0,68676.0,0.07264377]
[1730681843627,0.50095649,68677.0,68673.0,0.07264377]
[1730681843824,0.57378649,68677.0,68675.0,0.05813093]
[1730681844037,0.072832,68675.0,68674.0,0.05813093]
[1730681844230,0.072832,68675.0,68665.0,0.15959221]
[1730681844231,0.072833,68674.0,68673.0,0.05813093]
[1730681844438,0.072833,68674.0,68668.0,0.07264377]
[1730681844439,0.072836,68671.0,68670.0,0.05813093]
[1730681844637,0.21299249,68671.0,68670.0,0.05813093]
[1730681845444,0.072837,68670.0,68669.0,0.05813093]
[1730681845741,0.148037,68670.0,68669.0,0.05813093]
[1730681846143,0.148037,68670.0,68664.0,0.072843]
[1730681846345,0.3608,68666.0,68665.0,0.072842]
[1730681846747,0.3608,68675.0,68666.0,0.072841]
[1730681846932,0.3608,68675.0,68674.0,0.072833]
[1730681847134,0.3608,68675.0,68674.0,0.17827912]
[1730681851841,0.3608,68686.0,68671.0,0.2984067]
[1730681852136,0.433615,68692.0,68689.0,0.072817]
[1730681852336,0.109716,68690.0,68689.0,0.072817]
[1730681853437,0.14582418,68690.0,68689.0,0.072817]
[1730681854650,0.14582418,68690.0,68682.0,0.072823]
[1730681854651,0.072821,68685.0,68682.0,0.072823]
[1730681854951,0.14015649,68679.0,68668.0,0.3608]
[1730681855255,0.072838,68669.0,68668.0,0.433639]
[1730681855456,0.14015649,68670.0,68657.0,1.50076]
[1730681855655,0.21299949,68665.0,68657.0,1.61264]
[1730681855956,0.21299949,68665.0,68664.0,0.072843]